bitfinex-derivatives/quotes_ETHF0:USTF0_20250727
["timestamp","ask_amount","ask_price","bid_price","bid_amount"]
[1753649464479,22.6596,3823.9,3823.8,5.33829224]
[1753649464683,1.4561,3824.4,3824.3,1.17621]
[1753649464882,22.6721,3824.4,3824.3,1.93691]
[1753649465277,23.50539,3824.4,3824.3,0.90841]
[1753649465577,22.9826,3824.4,3824.3,0.90841]
[1753649466083,22.9826,3824.4,3824.3,1.37301]
[1753649466383,23.50539,3824.4,3824.3,0.90841]
[1753649466582,23.50539,3824.4,3824.3,0.71591]
[1753649466985,22.9826,3824.4,3824.3,0.71591]
[1753649467183,22.9826,3824.4,3824.3,1.64081]
[1753649467385,22.9786,3824.4,3824.3,1.93691]
[1753649467586,2.28943,3824.2,3824.1,0.52282]
[1753649467780,23.50043,3824.2,3824.1,0.52282]
[1753649468379,2.28945,3824.1,3824.0,0.71594]
[1753649468687,2.28945,3824.1,3824.0,0.52284]
[1753649468990,2.28945,3824.1,3824.0,0.71594]
[1753649469384,2.28945,3824.1,3824.0,0.1931]
[1753649469785,2.28945,3824.1,3824.0,0.71595]
[1753649469985,2.28945,3824.1,3824.0,1.07585]
[1753649470689,2.28945,3824.1,3824.0,0.3856]
[1753649471079,0.52286,3823.9,3823.8,4.22139224]
[1753649471286,23.49146,3823.9,3823.8,0.19352224]
[1753649471584,23.49146,3823.9,3823.8,0.71639224]
[1753649471792,23.49146,3823.9,3823.8,0.90949224]
[1753649471992,23.49146,3823.9,3823.8,1.26939224]
[1753649472496,23.49146,3823.9,3823.8,1.56659224]
[1753649472790,23.49146,3823.9,3823.8,1.83439224]
[1753649472990,23.49146,3823.9,3823.8,2.13049224]
[1753649474485,23.48046,3823.9,3823.8,2.13049224]
[1753649475589,1.4686,3823.9,3823.8,2.13049224]
[1753649475792,0.7104,3824.1,3824.0,1.93693]
[1753649476089,23.47044,3824.1,3824.0,1.93693]
[1753649477090,23.46744,3824.1,3824.0,1.93693]
[1753649477486,23.46744,3824.1,3824.0,0.52283]
[1753649477688,1.7666,3823.9,3823.8,0.71639224]
[1753649477992,23.46046,3823.9,3823.8,1.56659224]
[1753649478191,23.46046,3823.9,3823.8,1.83439224]
[1753649478392,22.9376,3823.9,3823.8,2.13049224]
[1753649478696,2.28944,3824.1,3824.0,1.93695]
[1753649478885,23.45744,3824.1,3824.0,1.93695]
[1753649479091,23.45744,3824.1,3824.0,1.64085]
[1753649479991,0.9921,3824.4,3824.3,1.93691]
[1753649480197,22.1591,3824.4,3824.3,1.93691]
[1753649480394,22.4696,3824.4,3824.3,1.93691]
[1753649480697,22.9336,3824.4,3824.3,1.93691]
[1753649481196,23.45639,3824.4,3824.3,1.93691]
[1753649481595,23.45639,3824.4,3824.3,1.64081]
[1753649482590,22.9336,3824.4,3824.3,1.64081]
[1753649482797,22.9336,3824.4,3824.3,1.93691]
[1753649482998,38.418,3824.7,3824.6,0.52277]
[1753649483199,59.8985,3824.7,3824.6,1.93687]
[1753649484496,59.8995,3824.7,3824.6,1.93687]
[1753649487493,60.42225,3824.7,3824.6,1.93687]
[1753649488201,39.25125,3824.7,3824.6,1.93687]
[1753649488398,60.40725,3824.7,3824.6,1.4141]
[1753649488595,60.40725,3824.7,3824.6,0.90837]
[1753649489196,59.8845,3824.7,3824.6,1.36017]
[1753649489391,59.8845,3824.7,3824.6,1.92607]
[1753649489599,60.40725,3824.7,3824.6,1.92607]
[1753649489902,59.8845,3824.7,3824.6,1.92607]
[1753649492701,60.40725,3824.7,3824.6,1.92607]
[1753649494506,60.40725,3824.7,3824.5,3.2078]
[1753649494507,1.22717,3824.6,3824.5,3.2078]
[1753649494703,1.30693,3824.6,3824.0,4.3183]
[1753649494904,0.7044,3824.1,3824.0,4.3183]
[1753649495207,23.40193,3824.1,3824.0,4.3183]
[1753649495399,23.40193,3824.1,3824.0,4.28955]
[1753649495906,23.40193,3824.1,3824.0,4.0521]
[1753649496103,23.40193,3824.1,3824.0,4.57495]
[1753649497507,23.40193,3824.1,3824.0,1.36715]
[1753649498411,23.40193,3824.1,3824.0,1.63335]
[1753649498606,23.40193,3824.1,3824.0,1.1105]
[1753649499006,23.40193,3824.1,3824.0,0.8443]
[1753649499208,23.40193,3824.1,3824.0,1.36715]
[1753649501015,23.40193,3824.1,3824.0,1.63335]
[1753649501915,23.40193,3824.1,3824.0,1.36715]
[1753649502210,23.40193,3824.1,3824.0,1.08175]
[1753649502413,23.40193,3824.1,3824.0,1.36715]
[1753649502713,23.40193,3824.1,3824.0,1.63335]
[1753649503015,1.22726,3823.9,3823.8,0.39912224]
[1753649503209,23.37596,3823.9,3823.8,0.39912224]
[1753649503410,23.37596,3823.9,3823.8,0.19352224]
[1753649505728,23.37596,3823.9,3823.1,3.2078]
[1753649505729,2.27406,3823.2,3823.1,3.2078]
[1753649506028,24.1150378,3823.2,3823.1,3.2078]
[1753649507323,24.1150378,3823.2,3823.1,5.14387]
[1753649507324,22.8531,3823.2,3823.1,5.14387]
[1753649507517,23.37606,3823.2,3823.1,4.84417]
[1753649507922,22.8531,3823.2,3823.1,4.84417]
[1753649508829,23.37606,3823.2,3823.1,3.6003]
[1753649509032,23.37606,3823.2,3823.1,3.2078]
[1753649510830,1.7511,3822.4,3822.3,3.73088]
[1753649511136,22.8501,3822.4,3822.3,4.55888]
[1753649511426,0.7591,3822.8,3822.7,0.52302]
[1753649511631,21.5995,3822.8,3822.7,5.14392]
[1753649511832,2.0492778,3823.5,3823.0,0.6605]
[1753649511833,0.4524,3823.4,3823.0,0.6605]
[1753649512028,1.0432,3823.7,3823.6,1.93598]
[1753649512236,22.1532,3823.7,3823.6,1.93598]
[1753649512436,22.8611,3823.7,3823.6,1.93598]
[1753649512831,21.8991,3823.7,3823.6,1.93598]
[1753649513029,0.7891,3823.7,3823.6,1.93598]
[1753649513232,21.108,3823.7,3823.6,1.93598]
[1753649513429,21.108,3823.7,3823.6,5.14378]
[1753649513635,1.2415,3823.9,3823.8,1.93597]
[1753649513933,0.7891,3823.9,3823.8,1.93597]
[1753649514126,0.4524,3824.9,3824.4,0.4529]
[1753649514326,1.4635,3825.2,3825.1,0.6605]
[1753649514526,0.5015,3825.2,3825.1,1.9358]
[1753649514833,0.5015,3825.2,3824.7,1.30689]
[1753649514834,38.406,3825.5,3825.4,1.93576]
[1753649515029,59.566,3825.5,3825.4,1.93576]
[1753649515334,1.4635,3825.2,3825.1,0.1675]
[1753649515631,0.7044,3824.6,3824.5,3.5809]
[1753649515835,23.0627778,3824.6,3823.9,0.4529]
[1753649516033,2.4930778,3824.0,3823.9,1.1134]
[1753649516231,23.6700778,3824.0,3823.9,1.63626]
[1753649516534,23.6700778,3824.0,3823.9,1.1134]
[1753649517334,23.6700778,3824.0,3823.9,1.63626]
[1753649518235,23.6700778,3824.0,3823.9,1.93826]
[1753649518831,0.9606,3824.6,3824.5,0.71958]
[1753649519030,22.6114,3824.6,3824.5,1.95808]
[1753649519432,22.8971,3824.6,3824.5,0.52278]
[1753649519633,22.8971,3824.6,3824.5,0.91948]
[1753649519939,22.8971,3824.6,3824.5,1.38768]
[1753649520732,0.7863,3824.6,3824.5,1.95808]
[1753649520937,21.176,3824.6,3824.5,1.95808]
[1753649521436,22.6174,3824.6,3824.5,1.95808]
[1753649521634,22.9031,3824.6,3824.5,0.52278]
[1753649521830,1.7271,3824.2,3824.1,0.52282]
[1753649522037,24.1598978,3824.2,3824.1,0.52282]
[1753649522240,0.6841,3824.1,3823.7,0.4697]
[1753649522428,22.6089,3824.0,3823.9,0.72275]
[1753649522633,22.8971,3824.0,3823.9,0.72275]
[1753649522833,22.8971,3824.0,3823.9,0.91955]
[1753649523036,22.8971,3824.0,3823.9,1.22005]
[1753649523538,23.41995,3824.0,3823.9,1.22005]
[1753649523735,0.7863,3824.0,3823.9,1.95815]
[1753649523933,0.2857,3824.4,3823.5,1.30729]
[1753649523934,0.4948,3824.4,3824.3,1.95811]
[1753649524139,21.6598,3824.4,3824.3,1.95811]
[1753649524533,21.9513,3824.4,3824.3,1.95811]
[1753649524734,22.4171,3824.4,3824.3,1.95811]
[1753649525141,1.4414,3824.7,3824.6,1.95807]
[1753649525331,22.6064,3824.7,3824.6,1.95807]
[1753649525535,22.8921,3824.7,3824.6,1.95807]
[1753649525740,23.6340778,3824.7,3824.5,0.52277]
[1753649525936,1.7271,3824.3,3824.2,1.38772]
[1753649526135,23.6350778,3824.3,3824.2,1.38772]
[1753649526336,24.1578878,3824.3,3824.2,1.22002]
[1753649526539,23.6350778,3824.3,3824.2,1.22002]
[1753649526939,23.6350778,3824.3,3824.2,1.38772]
[1753649527543,22.8931,3824.3,3824.2,1.65612]
[1753649527739,22.8931,3824.3,3824.2,5.16592]
[1753649528842,22.1416,3824.3,3824.2,5.16592]
[1753649529234,0.6841,3824.0,3823.9,0.52284]
[1753649529441,22.8811,3824.0,3823.9,0.52284]
[1753649529641,22.8811,3824.0,3823.9,4.42784]
[1753649529944,23.40395,3824.0,3823.9,1.22004]
[1753649530243,22.8811,3824.0,3823.9,1.38774]
[1753649530646,22.8811,3824.0,3823.9,1.65614]
[1753649531341,0.2882,3824.0,3823.9,1.65614]
[1753649531540,2.2499,3824.4,3824.3,1.1333]
[1753649531735,0.91873,3824.1,3824.0,1.38924]
[1753649531939,21.8501,3824.1,3824.0,1.68974]
[1753649532138,22.8931,3824.1,3824.0,1.38774]
[1753649532845,0.71217,3823.9,3823.8,0.1999]
[1753649533145,1.7271,3823.8,3823.7,1.22009]
[1753649533345,22.8901,3823.8,3823.7,1.22009]
[1753649533546,22.8901,3823.8,3823.7,1.38779]
[1753649534038,23.41297,3823.8,3823.7,1.38779]
[1753649534238,22.8901,3823.8,3823.7,1.22009]
[1753649534447,22.8901,3823.8,3823.7,1.65619]
[1753649535042,23.41297,3823.8,3823.7,1.65619]
[1753649535742,23.41297,3823.8,3823.7,1.1333]
[1753649535945,23.41297,3823.8,3823.7,1.22009]
[1753649536146,22.8901,3823.8,3823.7,1.22009]
[1753649536346,22.8901,3823.8,3823.7,1.38779]
[1753649536546,23.41297,3823.8,3823.7,1.65619]
[1753649537848,23.41297,3823.8,3823.7,1.38779]
[1753649538547,23.41297,3823.8,3823.7,0.8649]
[1753649539654,23.41297,3823.8,3823.7,0.3967]
[1753649539943,2.25002,3823.5,3823.4,0.6972]
[1753649540245,1.7271,3823.1,3822.8,3.89851]
[1753649540452,22.06488,3823.0,3822.9,0.1999]
[1753649540655,22.35308,3823.0,3822.9,0.1999]
[1753649541044,23.39608,3823.0,3822.9,0.9197]
[1753649541244,23.39608,3823.0,3822.9,1.1333]
[1753649543147,23.39608,3823.0,3822.9,1.6563]
[1753649543638,23.39608,3823.0,3822.9,1.9583]
[1753649544451,23.39608,3823.0,3822.9,1.4353]
[1753649544944,22.8661,3823.0,3822.9,1.9583]
[1753649545150,23.38908,3823.0,3822.9,0.6972]
[1753649545344,23.38908,3823.0,3822.9,1.2202]
[1753649545645,1.7843,3822.9,3822.8,3.2078]
[1753649545851,2.24553097,3822.9,3822.8,3.2078]
[1753649546746,2.24553097,3822.9,3822.8,3.6045]
[1753649546944,2.24553097,3822.9,3822.8,4.86411]
[1753649547144,23.37053097,3822.9,3822.8,4.86411]
[1753649547345,23.37053097,3822.9,3822.8,4.3411]
[1753649547546,23.37053097,3822.9,3822.8,4.86411]
[1753649547847,0.90754,3822.7,3822.6,0.4057]
[1753649548051,0.90754,3822.7,3822.6,1.64834]
[1753649548052,1.7215,3822.7,3822.6,1.64834]
[1753649548250,23.36652,3822.7,3822.6,1.94584]
[1753649548442,23.36652,3822.7,3822.6,0.6922]
[1753649548648,0.6882,3822.5,3822.4,1.64837]
[1753649548951,21.12,3822.5,3822.4,1.94587]
[1753649549353,21.4253,3822.5,3822.4,1.94587]
[1753649550253,21.9227,3822.5,3822.4,1.94587]
[1753649551348,0.52307,3822.4,3822.3,3.2078]
[1753649551554,2.24457,3822.4,3822.3,0.8588]
[1753649551756,1.7215,3822.4,3822.3,5.15368]
[1753649551947,2.24457,3822.4,3822.3,5.15368]
[1753649552144,2.24457,3822.4,3822.3,1.94588]
[1753649552348,2.24457,3822.4,3822.3,1.64838]
[1753649552550,1.7215,3822.3,3822.2,0.01831382]
[1753649552751,23.38458,3822.3,3822.2,0.01831382]
[1753649553057,22.5805,3822.3,3822.2,1.44111382]
[1753649553356,0.96902,3822.8,3822.3,1.4228]
[1753649553559,5.45227,3823.1,3823.0,0.2062]
[1753649553861,2.2445,3822.9,3822.8,1.64831]
[1753649554054,2.2445,3822.9,3822.8,1.94581]
[1753649554356,1.7215,3822.9,3822.8,1.94581]
[1753649554757,1.4395,3822.9,3822.8,1.94581]
[1753649554949,2.2445,3822.9,3822.8,0.6922]
[1753649555155,21.4997,3822.9,3822.8,1.94581]
[1753649555353,21.196,3822.9,3822.8,1.94581]
[1753649555753,21.5013,3822.9,3822.8,1.94581]
[1753649555955,21.9987,3822.9,3822.8,1.94581]
[1753649556457,22.4447,3822.9,3822.8,1.94581]
[1753649557156,22.4617,3822.9,3822.8,1.94581]
[1753649557556,1.2487,3822.9,3822.8,1.94581]
[1753649557757,22.0127,3822.9,3822.8,1.94581]
[1753649558451,22.4587,3822.9,3822.8,1.94581]
[1753649558754,22.4587,3822.9,3822.7,3.2078]
[1753649558755,3.73071,3823.6,3823.2,1.4228]
[1753649558958,0.8027,3823.9,3823.8,1.94567]
[1753649559253,41.69793,3824.1,3824.0,1.94565]
[1753649559453,63.65393,3824.1,3824.0,1.94565]
[1753649560259,63.65393,3824.1,3824.0,1.4228]
[1753649560446,63.65393,3824.1,3824.0,0.6922]
[1753649560652,60.44613,3824.1,3824.0,0.6922]
[1753649560853,38.6953,3824.1,3824.0,1.64815]
[1753649561155,1.7215,3824.4,3824.3,1.94561]
[1753649561366,1.30674,3825.2,3824.0,3.2078]
[1753649561367,0.446,3825.0,3824.5,0.2665]
[1753649561560,22.2185,3824.9,3824.8,1.4228]
[1753649561746,22.9465,3824.9,3824.8,0.52274]
[1753649561949,1.7215,3824.5,3824.4,0.2062]
[1753649562148,23.48628,3824.5,3824.4,0.2062]
[1753649562654,1.7215,3824.2,3824.1,1.21503]
[1753649562958,21.251,3824.6,3824.5,1.4228]
[1753649563256,21.29,3824.8,3824.7,1.19495]
[1753649563453,21.29,3824.8,3824.7,1.94555]
[1753649563654,0.3053,3825.2,3825.1,0.5227]
[1753649563860,22.4202,3825.2,3825.1,1.1949]
[1753649564055,22.4202,3825.2,3825.1,1.9455]
[1753649564252,1.1342,3825.2,3825.1,1.9455]
[1753649564456,21.9732,3825.2,3825.1,1.9455]
[1753649564860,22.2785,3825.2,3825.1,1.9455]
[1753649565063,23.52918,3825.2,3825.1,1.1253]
[1753649565257,23.52918,3825.2,3825.1,1.648]
[1753649565460,23.0065,3825.2,3825.1,1.648]
[1753649565957,23.52918,3825.2,3825.1,1.1253]
[1753649566760,23.52918,3825.2,3825.1,1.648]
[1753649567555,23.52918,3825.2,3825.1,1.1253]
[1753649568058,0.71351,3825.0,3824.9,0.80922]
[1753649568267,0.71351,3825.0,3824.7,0.1666]
[1753649568268,1.85975,3824.8,3824.7,0.80925]
[1753649568563,22.9845,3824.8,3824.7,1.94555]
[1753649568759,22.7025,3824.8,3824.7,1.94555]
[1753649569361,22.9845,3824.8,3824.7,1.94555]
[1753649570262,23.50724,3824.8,3824.7,1.94555]
[1753649570462,22.9845,3824.8,3824.7,1.94555]
[1753649570759,22.7025,3824.8,3824.7,1.94555]
[1753649571759,22.9845,3824.8,3824.7,1.94555]
[1753649571955,23.50724,3824.8,3824.7,1.94555]
[1753649572762,22.9845,3824.8,3824.7,1.94555]
[1753649576567,23.47324,3824.8,3824.7,1.94555]
[1753649577266,22.9505,3824.8,3824.7,1.94555]
[1753649579462,22.9385,3824.8,3824.7,1.94555]
[1753649580368,0.9705,3825.1,3825.0,1.93551]
[1753649580568,1.1694,3825.3,3825.2,1.93547]
[1753649580763,22.3864,3825.3,3825.2,1.93547]
[1753649580964,0.6075,3825.5,3825.4,0.52266]
[1753649581265,22.016,3825.5,3825.4,1.93546]
[1753649581467,2.27724,3825.5,3825.4,0.6722]
[1753649581671,1.23638,3825.3,3825.2,0.391]
[1753649581868,2.27732,3824.9,3824.8,3.2078]
[1753649582067,2.27738,3824.6,3824.5,0.52277]
[1753649582266,22.9816,3824.6,3824.5,0.52277]
[1753649582465,22.9816,3824.6,3824.5,1.19497]
[1753649582767,22.9816,3824.6,3824.5,1.36197]
[1753649582768,23.50437,3824.6,3824.5,1.36197]
[1753649582968,22.9816,3824.6,3824.5,1.36197]
[1753649583170,22.9816,3824.6,3824.5,1.62917]
[1753649583560,22.6816,3824.6,3824.5,1.93557]
[1753649583767,22.6816,3824.6,3824.5,1.62917]
[1753649583768,23.20437,3824.6,3824.5,1.62917]
[1753649583973,22.9816,3824.6,3824.5,1.62917]
[1753649584564,23.50437,3824.6,3824.5,1.62917]
[1753649584872,0.5064,3824.3,3824.2,0.391]
[1753649585063,0.5064,3824.3,3824.2,1.36202]
[1753649585064,1.7546,3824.3,3824.2,1.36202]
[1753649585263,1.7546,3824.3,3824.2,1.62922]
[1753649585460,2.27741,3824.3,3824.2,1.93562]
[1753649586069,2.27741,3824.3,3824.2,1.62922]
[1753649586270,1.7546,3824.3,3824.2,1.62922]
[1753649586969,2.27741,3824.3,3824.2,1.62922]
[1753649587169,1.7546,3824.3,3824.2,1.62922]
[1753649588270,1.7546,3824.3,3823.9,4.82134]
[1753649588271,1.0409,3824.1,3824.0,0.52285]
[1753649588466,1.7546,3824.1,3824.0,0.52285]
[1753649588665,1.7546,3824.1,3824.0,1.93565]
[1753649588966,1.7546,3824.1,3824.0,1.36205]
[1753649589764,1.7546,3824.1,3824.0,1.93565]
[1753649590263,0.7137,3824.1,3824.0,0.52285]
[1753649590465,0.7137,3824.1,3824.0,1.19505]
[1753649590664,0.7137,3824.7,3824.6,1.48736]
[1753649590866,21.9287,3824.7,3824.6,1.48736]
[1753649591265,0.8,3824.7,3824.6,5.14336]
[1753649591465,21.5205,3824.7,3824.6,5.14336]
[1753649592363,22.013,3824.7,3824.6,5.14336]
[1753649592566,22.9676,3824.7,3824.6,5.14336]
[1753649592971,22.9676,3824.7,3824.6,1.93556]
[1753649593975,22.9676,3824.7,3824.6,1.19497]
[1753649594571,23.49035,3824.7,3824.6,0.6722]
[1753649594773,1.7546,3824.3,3824.2,0.52281]
[1753649594975,21.203,3824.3,3823.7,3.7954]
[1753649595276,2.27747,3823.8,3823.7,3.2078]
[1753649595475,23.49147,3823.8,3823.7,3.2078]
[1753649595678,23.8348057,3823.8,3823.7,3.2078]
[1753649595873,1.7546,3823.4,3823.3,0.72624]
[1753649596077,22.9826,3823.4,3823.3,0.72624]
[1753649596375,22.9826,3823.4,3823.3,1.19514]
[1753649596579,22.9826,3823.4,3823.3,0.52294]
[1753649596878,1.7546,3823.3,3823.2,0.71065]
[1753649597171,1.7546,3823.3,3823.2,1.36215]
[1753649597965,1.7546,3823.3,3823.2,1.62935]
[1753649598979,1.7546,3823.3,3823.1,3.2078]
[1753649599169,22.9786,3823.2,3823.1,3.73077]
[1753649599372,22.9786,3823.2,3823.1,3.91847]
[1753649599976,22.9786,3823.2,3823.1,4.12177]
[1753649600178,22.9786,3823.2,3823.1,4.83717]
[1753649601476,22.9786,3823.2,3823.1,5.14357]
[1753649601683,21.213,3823.6,3823.5,1.93572]
[1753649601874,0.7137,3824.4,3824.3,0.6582]
[1753649602075,23.58223599,3824.4,3824.3,1.1064]
[1753649602282,23.34464599,3824.4,3824.3,1.62921]
[1753649602475,23.34464599,3824.4,3824.3,1.19501]
[1753649602676,23.86743599,3824.4,3824.3,0.391]
[1753649602980,1.7546,3824.1,3824.0,0.52285]
[1753649603179,23.37064599,3824.1,3824.0,0.52285]
[1753649603375,1.7546,3824.0,3823.9,0.1877]
[1753649603678,22.35802379,3824.1,3823.7,0.52288]
[1753649603679,1.7546,3823.8,3823.7,0.52288]
[1753649603877,0.7137,3823.5,3823.4,4.56993]
[1753649604074,1.7546,3823.5,3823.4,4.83713]
[1753649604581,1.7546,3823.5,3823.4,1.62933]
[1753649604778,21.248,3823.6,3823.4,5.14353]
[1753649604973,0.7419778,3824.4,3823.4,5.14353]
[1753649604974,1.7546,3824.3,3824.2,0.6722]
[1753649605176,22.6406919,3824.3,3823.9,0.2812]
[1753649605380,1.8245919,3824.2,3824.1,1.62923]
[1753649605583,22.1407919,3824.2,3824.1,1.93563]
[1753649606884,22.4259919,3824.2,3824.1,1.93563]
[1753649607385,22.88167445,3824.2,3824.1,1.93563]
[1753649608287,23.08057445,3824.2,3824.1,1.93563]
[1753649608484,0.2048,3823.7,3823.6,0.6658]
[1753649608787,1.025,3823.7,3823.6,1.9277]
[1753649609184,1.4472,3823.7,3823.6,1.9277]
[1753649611784,1.025,3823.7,3823.6,1.9277]
[1753649612290,1.4472,3823.7,3823.6,1.9277]
[1753649612989,1.7338,3823.7,3823.6,1.9277]
[1753649613895,1.7338,3823.7,3823.6,1.6432]
[1753649614190,22.9588,3823.7,3823.6,0.7097]
[1753649615293,23.48169,3823.7,3823.6,0.1868]
[1753649615494,23.48169,3823.7,3823.6,1.6432]
[1753649615689,23.48169,3823.7,3823.6,1.1203]
[1753649616095,23.48169,3823.7,3823.6,0.8526]
[1753649616889,21.7384,3823.7,3823.6,1.9277]
[1753649617187,1.4242,3824.0,3823.9,0.89806]
[1753649617494,21.7286,3824.0,3823.9,5.13546]
[1753649618586,22.07829593,3824.0,3823.9,5.13546]
[1753649618891,22.4554,3824.0,3823.9,5.13546]
[1753649619092,22.9488,3824.0,3823.9,1.92766]
[1753649619285,1.0184,3823.9,3823.6,0.4774]
[1753649619489,1.4472,3823.7,3823.6,1.9277]
[1753649619689,1.4472,3823.7,3823.6,1.6176]
[1753649619891,1.4472,3823.7,3823.6,1.9277]
[1753649620189,1.2404,3823.7,3823.6,1.9277]
[1753649620396,0.8182,3823.7,3823.6,1.9277]
[1753649623292,1.2404,3823.7,3823.6,1.9277]
[1753649625396,1.4472,3823.7,3823.6,1.9277]
[1753649625896,1.7338,3823.7,3823.6,1.9277]
[1753649628498,1.7338,3823.7,3823.6,0.5229]
[1753649629696,2.25669,3823.7,3823.6,0.5229]
[1753649629904,1.7338,3823.2,3823.1,3.73077]
[1753649630702,2.25676,3823.2,3823.1,3.2078]
[1753649630904,1.7338,3823.2,3823.1,3.73077]
[1753649631198,2.25676,3823.2,3823.1,3.2078]
[1753649632302,2.25676,3823.2,3822.8,0.523]
[1753649632303,0.7154,3822.9,3822.8,0.523]
[1753649632498,1.7338,3822.9,3822.8,0.7098]
[1753649632698,1.7338,3822.9,3822.8,1.0199]
[1753649633200,1.7338,3822.9,3822.8,1.3756]
[1753649634991,1.7338,3822.9,3822.8,0.523]
[1753649635196,1.7338,3822.9,3822.8,1.01991]
[1753649635798,1.7338,3822.9,3822.8,1.20831]
[1753649636002,1.7338,3822.9,3822.8,1.37561]
[1753649636202,1.4472,3822.9,3822.8,1.92781]
[1753649636408,1.2404,3822.9,3822.8,1.92781]
[1753649636992,1.002,3823.5,3823.4,1.16573]
[1753649637192,1.7338,3823.5,3823.4,1.92753]
[1753649637398,3.2078,3823.8,3823.7,0.52289]
[1753649637399,4.632,3823.8,3823.7,0.52289]
[1753649637606,4.9416,3823.8,3823.7,1.92749]
[1753649639104,2.25667,3823.8,3823.7,1.64299]
[1753649639700,2.25667,3823.8,3823.7,0.6853]
[1753649639900,1.7324,3823.5,3823.4,0.1917]
[1753649640100,1.7324,3823.5,3823.4,1.65052]
[1753649641802,1.0032,3824.0,3823.9,1.4314]
[1753649642103,1.30688,3824.8,3824.5,0.6593]
[1753649642104,1.0032,3824.6,3824.5,0.6593]
[1753649642298,2.18781748,3824.6,3824.5,1.95418]
[1753649642805,2.49261748,3824.6,3824.5,1.65038]
[1753649644406,1.7324,3824.6,3824.5,1.65038]
[1753649646396,1.7324,3824.6,3824.5,1.95418]
[1753649646896,1.7324,3824.6,3824.5,1.65038]
[1753649647101,1.7324,3824.3,3824.2,1.65042]
[1753649647606,1.7324,3824.3,3824.2,1.95422]
[1753649651904,0.6947,3824.8,3824.7,0.91385]
[1753649652103,1.64185,3824.8,3824.7,0.8594]
[1753649652610,2.25515,3824.8,3824.7,1.38215]
[1753649653202,1.7324,3824.8,3824.7,1.38215]
[1753649653406,2.25514,3824.8,3824.7,1.38215]
[1753649658303,2.25514,3824.8,3824.7,0.8594]
[1753649658511,2.25514,3824.8,3824.7,1.21455]
[1753649659010,2.25514,3824.8,3824.7,0.91385]
[1753649659714,2.25514,3824.8,3824.7,1.21455]
[1753649660214,2.25514,3824.8,3824.7,0.52275]
[1753649660818,2.25514,3824.8,3824.7,0.82345]
[1753649661314,2.25514,3824.8,3824.7,1.01515]
[1753649663808,2.25514,3824.8,3824.7,0.4924]
[1753649664014,1.2175,3824.5,3824.4,0.52279]
[1753649664215,2.9971778,3824.5,3824.4,0.52279]
[1753649664415,2.9971778,3824.5,3824.4,0.82349]
[1753649664724,2.9971778,3824.5,3824.4,1.38219]
[1753649665419,1.94664,3824.8,3824.7,1.18205]
[1753649665614,23.04264,3824.8,3824.7,1.95415]
[1753649665919,22.8284,3824.8,3824.7,1.95415]
[1753649666118,1.7324,3824.8,3824.7,1.95415]
[1753649666314,22.8254,3824.8,3824.7,1.95415]
[1753649666724,0.3085,3824.8,3824.7,1.95415]
[1753649667026,1.2314,3825.1,3825.0,1.95411]
[1753649667534,0.807,3825.1,3825.0,1.95411]
[1753649668117,0.807,3825.1,3825.0,2.16277816]
[1753649668326,0.807,3825.1,3825.0,1.95411]
[1753649668829,1.2364,3825.1,3825.0,1.95411]
[1753649669030,1.7446,3825.1,3825.0,1.95411]
[1753649673328,0.6919,3824.7,3824.6,1.37607]
[1753649673528,0.6919,3824.7,3824.6,1.93127]
[1753649673929,1.4094,3824.7,3824.6,1.93127]
[1753649674826,1.7106,3824.7,3824.6,1.93127]
[1753649675535,1.7106,3824.7,3824.6,1.64257]
[1753649675729,0.4984,3824.4,3824.3,0.5228]
[1753649675924,1.1213,3824.4,3824.2,0.1666]
[1753649676125,1.7106,3824.1,3824.0,4.85045]
[1753649676328,1.7106,3824.1,3824.0,5.13915]
[1753649677731,2.23343,3824.1,3824.0,5.13915]
[1753649677930,2.23343,3824.1,3824.0,1.1198]
[1753649678233,1.7106,3824.1,3824.0,1.09045]
[1753649678439,1.7106,3824.1,3824.0,4.85045]
[1753649678633,2.23343,3824.1,3824.0,4.3276]
[1753649679126,2.23343,3824.1,3824.0,1.1198]
[1753649680129,1.7106,3824.1,3824.0,1.1198]
[1753649680334,2.23343,3824.1,3824.0,1.4085]
[1753649681529,0.52287,3823.8,3823.7,0.4523]
[1753649681734,2.9754478,3823.8,3823.7,0.6867]
[1753649681929,1.93232,3823.5,3823.4,0.4913]
[1753649682238,2.23354,3823.3,3823.2,0.8533]
[1753649682534,1.7106,3822.8,3822.7,4.97272]
[1753649682835,2.23361,3822.8,3822.7,5.17766897]
[1753649683137,2.23361,3822.8,3822.7,3.2078]
[1753649683339,1.7106,3822.4,3822.3,4.41758]
[1753649683635,1.2024,3822.9,3822.8,0.9532]
[1753649683839,2.2336,3822.9,3822.8,4.3276]
[1753649684137,1.2024,3822.9,3822.8,4.39831]
[1753649684337,1.7106,3822.9,3822.8,3.4032]
[1753649684535,2.23365,3822.5,3822.4,3.6088]
[1753649684732,2.23365,3822.5,3822.4,3.4134]
[1753649685540,2.23365,3822.5,3822.4,3.6991]
[1753649687046,2.23365,3822.5,3822.4,3.8945]
[1753649687439,2.23365,3822.5,3822.4,3.4134]
[1753649687645,1.21498,3822.3,3822.2,0.41931382]
[1753649687847,2.23368,3822.3,3822.2,0.70501382]
[1753649688037,0.7175,3822.3,3822.2,1.94990382]
[1753649688243,1.24058,3822.3,3822.2,1.94990382]
[1753649688442,1.24058,3822.3,3822.2,1.42681382]